Workbook

Sheet 2019 (2)
Q5: TOTAL COST | Y5: Internet | Z5: CPM - total seguidores | AA5: CPM-impressões | AB5: CPE - pré | AC5: CPE - azul | AD5: Cost per post | AE5: Cost per vídeo | AF5: Cost per Video View | AG5: Cost per Story View
A6: PRODUTO | B6: Marca | C6: Categoria | D6: Tipo | E6: PV Parcelado | F6: 1 | G6: PV À vista | H6: Internet | I6: PC | J6: NF Yale | K6: Data da NF | L6: Estoque | M6: Link | N6: pc | O6: 1 | P6: Margem Desejável | Q6: TTL Custos Parcelado | R6: IMP. Venda | S6: Tx Maquininha | T6: Comissão | U6: Frete | V6: Reserva | W6: PV - Custos | X6: MB
A7: modelo 1 | B7: abc | C7: a | D7: Sobrepor | E7: 1099 | F7: =F6+1 -> 2 | G7: 1022.07 | H7: 690.92 | I7: 711.57 | J7: 20832 | K7: 08/04/2021 | L7: 1 | M7: https://www.extra.com.br/cofre-yale-value-laptop-ylv-200-db1-1514616409/p/1514616409?utm_medium=cpc&utm_source=GP_PLA&IdSku=1514616409&idLojista=102643&utm_campaign=3P_agrupamento_medio_SSC&gclid=Cj0KCQjww4OMBhCUARIsAILndv4m6GdwMLnBmB0I3NyvryAVSebO17owdoPRKc-2AHa4EUCBLlNK6ywaAhx3EALw_wcB | N7: 711.57 | O7: =O3+1 -> 1 | P7: 0.07 | Q7: =IFERROR(R7+S7+T7+U7+V7,"-") -> 158.9116 | R7: =Y7*12% -> 82.9104 | S7: =Y7*7% -> 48.3644 | T7: =Y7*1% -> 6.9092 | U7: =Y7*1% -> 6.9092 | V7: =Y7*2% -> 13.8184 | W7: =Y7-Q7-N7 -> -179.5616 | X7: =IFERROR(W7/N7,"-") -> -0.2523456582 | Y7: =H7 -> 690.92 | Z7: =Y7/#REF!*1000 ->  | AA7: =Y7/#REF!*1000 ->  | AB7: =(Y7/(#REF!*#REF!)) ->  | AC7: =Y7/(#REF!*#REF!) -> 
A8: modelo 2 | B8: abc | C8: a | D8: Embutir | E8: 3064.940875 | F8: =F7+1 -> 3 | G8: 2850.395013 | H8: 2178.12 | I8: 2148.46 | J8: 21287 | K8: 14/04/2021 | L8: 2 | M8: https://www.pontofrio.com.br/fechadura-biometrica-ydf-40-embutir-1501014974/p/1501014974?utm_medium=cpc&utm_source=GP_PLA&IdSku=1501014974&idLojista=12231&utm_campaign=3P_All-Produtcs_SSC&gclid=Cj0KCQjww4OMBhCUARIsAILndv4_kubXFX7kAHHHmCqvFgcrMdZMAPUmgQUQ6_Ipzdjfou09XHKpUBUaAkKBEALw_wcB | N8: 2148.46 | O8: =O4+1 -> 1 | P8: 0.07 | Q8: =IFERROR(R8+S8+T8+U8+V8,"-") -> 500.9676 | R8: =Y8*12% -> 261.3744 | S8: =Y8*7% -> 152.4684 | T8: =Y8*1% -> 21.7812 | U8: =Y8*1% -> 21.7812 | V8: =Y8*2% -> 43.5624 | W8: =Y8-Q8-N8 -> -471.3076 | X8: =IFERROR(W8/N8,"-") -> -0.2193699673 | Y8: =H8 -> 2178.12 | Z8: =Y8/#REF!*1000 ->  | AA8: =Y8/#REF!*1000 ->  | AB8: =(Y8/(#REF!*#REF!)) ->  | AC8: =Y8/(#REF!*#REF!) -> 
A9: modelo 3 | B9: abc | C9: a | D9: Embutir | E9: 1652.058603 | F9: 4 | G9: 1536.4145 | H9: 999.9 | I9: 1156.54 | J9: 35088 | K9: 2021-09-22T18:31:00 | L9: 15 | M9: https://www.amazon.com.br/Yale-05425001-3-Fechadura-Digital-Preto/dp/B07D82PQTV/ref=asc_df_B07D82PQTV/?tag=googleshopp00-20&linkCode=df0&hvadid=379787201939&hvpos=&hvnetw=g&hvrand=10217701381691654036&hvpone=&hvptwo=&hvqmt=&hvdev=c&hvdvcmdl=&hvlocint=&hvlocphy=1001773&hvtargid=pla-809656426070&psc=1 | N9: 1156.54 | O9: 1 | P9: 0.07 | Q9: =IFERROR(R9+S9+T9+U9+V9,"-") -> 229.977 | R9: =Y9*12% -> 119.988 | S9: 69.993 | T9: =Y9*1% -> 9.999 | U9: =Y9*1% -> 9.999 | V9: =Y9*2% -> 19.998 | W9: =Y9-Q9-N9 -> -386.617 | X9: =IFERROR(W9/N9,"-") -> -0.3342876165 | Y9: =H9 -> 999.9
A10: modelo 4 | B10: abc | C10: a | D10: Embutir | E10: 1469.205798 | F10: 5 | G10: 1366.361393 | H10: 1139.05 | I10: 1028.52 | J10: 27538 | K10: 2021-07-07 | L10: 6 | M10: https://www.leveros.com.br/fechadura-digital-yale-yrd-226-rl-com-senha-e-chave/p?idsku=2020629&gclid=Cj0KCQjw5oiMBhDtARIsAJi0qk3BDouxYN8eOocg-Rpw0V-U4arDusyViZq8_Ri1bGD6mRDX5kGAgrsaAgHkEALw_wcB | N10: 1028.52 | O10: 2 | P10: 0.07 | Q10: 261.9815 | R10: 136.686 | S10: 79.7335 | T10: 11.3905 | U10: 11.3905 | V10: 22.781 | W10: =Y10-Q10-N10 -> -151.4515 | X10: =IFERROR(W10/N10,"-") -> -0.1472518765 | Y10: =H10 -> 1139.05
A11: modelo 5 | B11: abc | C11: a | D11: Embutir | E11: 1390.006711 | F11: 6 | G11: 1292.706241 | H11: 1219.9 | I11: 973.2 | J11: 10942 | K11: 2020-12-07 | L11: 6 | M11: https://www.casasbahia.com.br/fechadura-digital-yale-yrl-226l-touchscreen-com-macaneta-55012486/p/55012486?utm_medium=Cpc&utm_source=GP_PLA&IdSku=55012486&idLojista=10037&utm_campaign=tudo_smart-shopping&gclid=Cj0KCQjw5oiMBhDtARIsAJi0qk30ApRMG0GY29EXw515AxDFNtgRv3R8h0RW_OZAn0_yqDKaGmxr6OQaAl7OEALw_wcB | N11: 973.2 | O11: 2 | P11: 0.07 | Q11: 280.577 | R11: 146.388 | S11: 85.393 | T11: 12.199 | U11: 12.199 | V11: 24.398 | W11: =Y11-Q11-N11 -> -33.877 | X11: =IFERROR(W11/N11,"-") -> -0.03480990547 | Y11: =H11 -> 1219.9
A12: modelo 6 | B12: abc | C12: a | D12: Embutir | E12: 1740.451821 | F12: 7 | G12: 1618.620194 | H12: 1044.65 | I12: 1218.42 | J12: - | K12: - | L12: 2 | M12: https://www.magazineluiza.com.br/fechadura-digital-yale-yrd-256-bp-para-porta-de-correr/p/jfhce160he/cj/dura/?&seller_id=jhowmaxmateriaisparacontrucao&utm_source=google&utm_medium=pla&utm_campaign=&partner_id=54222&gclid=Cj0KCQjw5oiMBhDtARIsAJi0qk2NJ3IYpN60DMwofB7CIr9521JUDdZg0ZXp36Xtl-qLyzmKjt6v-IwaApg4EALw_wcB&gclsrc=aw.ds | N12: 1218.42 | O12: 2 | P12: 0.07 | Q12: 240.2695 | R12: 125.358 | S12: 73.1255 | T12: 10.4465 | U12: 10.4465 | V12: 20.893 | W12: =Y12-Q12-N12 -> -414.0395 | X12: =IFERROR(W12/N12,"-") -> -0.3398167299 | Y12: =H12 -> 1044.65
A13: modelo 7 | B13: abc | C13: a | D13: Embutir | E13: 1667.5 | F13: 8 | G13: 1550.775 | H13: 1458.6 | I13: 1163 | J13: 34897 | K13: 2021-09-21 | L13: 11 | M13: https://www.magazineluiza.com.br/fechadura-digital-yale-ymc-420d-com-zigbee-biometria-cartao/p/jec73c97k3/ci/fdig/?&seller_id=jhowmaxmateriaisparacontrucao&utm_source=google&utm_medium=pla&utm_campaign=&partner_id=61985&gclid=Cj0KCQjw5oiMBhDtARIsAJi0qk0RWbBbLF98WGCvLlG2plSdbUvZIjbcsyAGli8fCEHurXlUmOLeKfUaApoTEALw_wcB&gclsrc=aw.ds | N13: 1163 | O13: 2 | P13: 0.07 | Q13: 335.478 | R13: 175.032 | S13: 102.102 | T13: 14.586 | U13: 14.586 | V13: 29.172 | W13: =Y13-Q13-N13 -> -39.878 | X13: =IFERROR(W13/N13,"-") -> -0.034288908 | Y13: =H13 -> 1458.6
A14: modelo 8 | B14: abc | C14: a | D14: Embutir | E14: 3182.013454 | F14: 9 | G14: 2959.272512 | H14: 2025 | I14: 2227.66 | J14: 39194 | K14: 2021-10-25 | L14: 2 | M14: https://www.tekdistribuidor.com.br/fechadura-digital-ymf-30-05422001-7-yale?parceiro=4158&gclid=Cj0KCQjwrJOMBhCZARIsAGEd4VGPzwcKPvzJVxZnv8DA3bYYsBh3I5GTpntPzquJyxjTkI8dJWlnalEaAj_YEALw_wcB | N14: 2227.66 | O14: 3 | P14: 0.07 | Q14: 465.75 | R14: 243 | S14: 141.75 | T14: 20.25 | U14: 20.25 | V14: 40.5 | W14: =Y14-Q14-N14 -> -668.41 | X14: =IFERROR(W14/N14,"-") -> -0.300050277 | Y14: =H14 -> 2025
A15: modelo 9 | B15: abc | C15: a | D15: Embutir | E15: 2604.397455 | F15: 10 | G15: 2422.089633 | H15: 1730.07 | I15: 1873.82 | J15: 3308 | K15: 2020-08-05 | L15: 7 | M15: https://www.celeti.com.br/fechadura-digital-yale-ydf-30-touch-screen-senha-ou-cart-o-rfid?gclid=Cj0KCQjwrJOMBhCZARIsAGEd4VGQy2Vn25AUBF8vq1_YwOQP1DqWIvY7-DCddIj1JxnQp9BFx08cK9waAgREEALw_wcB | N15: 1873.82 | O15: 3 | P15: 0.07 | Q15: 397.9161 | R15: 207.6084 | S15: 121.1049 | T15: 17.3007 | U15: 17.3007 | V15: 34.6014 | W15: =Y15-Q15-N15 -> -541.6661 | X15: =IFERROR(W15/N15,"-") -> -0.2890705084 | Y15: =H15 -> 1730.07
A16: modelo 10 | B16: abc | C16: a | D16: Embutir | E16: 2430.330993 | F16: 11 | G16: 2260.207823 | H16: 2156.5 | I16: 1709.6 | J16: 20832 | K16: 2021-04-08 | L16: 3 | M16: https://www.shopfacil.com.br/fechadura-digital-yale-ydf-40-bp-com-senha---interna-de-embutir-1172624028/p?seller=004443713&sellerId=004443713&idsku=8287429&lu=20211028111320&gclid=Cj0KCQjwrJOMBhCZARIsAGEd4VEOAVXM90xDY1sYv7Zu7Ow5zYJrOdDC5lZhZeGfTtEWP-0V2okHrbwaAtEVEALw_wcB&gclsrc=aw.ds | N16: 1709.6 | O16: 3 | P16: 0.07 | Q16: 495.995 | R16: 258.78 | S16: 150.955 | T16: 21.565 | U16: 21.565 | V16: 43.13 | W16: =Y16-Q16-N16 -> -49.095 | X16: =IFERROR(W16/N16,"-") -> -0.0287172438 | Y16: =H16 -> 2156.5
A17: modelo 11 | B17: abc | C17: a | D17: Embutir | E17: 3009.451223 | F17: 12 | G17: 2798.789637 | H17: 2831 | I17: 2106.55 | J17: 34897 | K17: 21/09/2021 | L17: 10 | M17: https://www.shoptime.com.br/produto/3855318794?opn=GOOGLEXML | N17: 2106.55 | O17: 3 | P17: 0.07 | Q17: 651.13 | R17: 339.72 | S17: 198.17 | T17: 28.31 | U17: 28.31 | V17: 56.62 | W17: =Y17-Q17-N17 -> 73.32 | X17: =IFERROR(W17/N17,"-") -> 0.034805725 | Y17: =H17 -> 2831
A18: modelo 12 | B18: abc | C18: a | D18: Embutir | E18: 1954.902463 | F18: 13 | G18: 1818.05929 | H18: 1100.84 | I18: 1525.49 | J18: 8006 | K18: 8006 | L18: 8 | M18: https://www.casasbahia.com.br/fechadura-digital-yale-embutir-ydm-3212-1514617413/p/1514617413?utm_medium=Cpc&utm_source=GP_PLA&IdSku=1514617413&idLojista=102643&utm_campaign=3P_AllProducts_SSC&gclid=Cj0KCQjwrJOMBhCZARIsAGEd4VFcgbba6hdTxG7GkKWeIZ3rBZSk3hFh2opUF9vsiKf09foZ-KdnaaMaAtwVEALw_wcB | N18: 1525.49 | O18: 4 | P18: 0.07 | Q18: 253.1932 | R18: 132.1008 | S18: 77.0588 | T18: 11.0084 | U18: 11.0084 | V18: 22.0168 | W18: =Y18-Q18-N18 -> -677.8432 | X18: =IFERROR(W18/N18,"-") -> -0.4443445713 | Y18: =H18 -> 1100.84
A19: modelo 13 | B19: abc | C19: a | D19: Embutir | E19: 775.054062 | F19: 14 | G19: 720.8002776 | H19: 571.65 | I19: 537.192 | J19: - | K19: - | L19: 2 | M19: https://www.magazineluiza.com.br/olho-magico-digital-yale-real-view-pro-jy7001-com-campainha/p/jc32ehck55/ci/omdi/?&seller_id=jhowmaxmateriaisparacontrucao&utm_source=google&utm_medium=pla&utm_campaign=&partner_id=54222&gclid=Cj0KCQjwrJOMBhCZARIsAGEd4VEuowhK1lRC7IVth0xEKaS2ooALedOox41T0ALVDppEtOmeRN9XZNYaAk_4EALw_wcB&gclsrc=aw.ds | N19: 537.192 | O19: 4 | P19: 0.07 | Q19: 131.4795 | R19: 68.598 | S19: 40.0155 | T19: 5.7165 | U19: 5.7165 | V19: 11.433 | W19: =Y19-Q19-N19 -> -97.0215 | X19: =IFERROR(W19/N19,"-") -> -0.1806086092 | Y19: =H19 -> 571.65
A20: modelo 14 | B20: abc | C20: a | D20: Configuraçã | E20: 550 | F20: 15 | G20: 511.5 | H20: 387.03 | I20: 521.21 | J20: - | K20: - | L20: 135 | M20: https://www.magazineluiza.com.br/hub-para-aplicativo-yale-connect/p/jkgj82ejgd/ci/hubf/?&seller_id=jhowmaxmateriaisparacontrucao&utm_source=google&utm_medium=pla&utm_campaign=&partner_id=54222&gclid=Cj0KCQjwrJOMBhCZARIsAGEd4VHetUjheGWZh3zmcefbsRq3g8_3MwRJ0gtU41mg-gzHRmVXNatgHvoaArbaEALw_wcB&gclsrc=aw.ds | N20: 521.21 | O20: 4 | P20: 0.07 | Q20: 89.0169 | R20: 46.4436 | S20: 27.0921 | T20: 3.8703 | U20: 3.8703 | V20: 7.7406 | W20: =Y20-Q20-N20 -> -223.1969 | X20: =IFERROR(W20/N20,"-") -> -0.4282283533 | Y20: =H20 -> 387.03
A21: modelo 15 | B21: abc | C21: a | D21: Configuraçã | E21: 300 | F21: 16 | G21: 279 | H21: 167.31 | I21: 175 | J21: - | K21: - | L21: 15 | M21: https://www.celeti.com.br/modulo-yale-zigbee-para-ymf-ydf-abertura-pelo-celular?gclid=Cj0KCQjwrJOMBhCZARIsAGEd4VGSsv3JCq_ny_Yo-30rqejCipQ4t7Iu1UwOePS27bn_pYVYg2HQRmkaAuBWEALw_wcB | N21: 175 | O21: 4 | P21: 0.07 | Q21: 38.4813 | R21: 20.0772 | S21: 11.7117 | T21: 1.6731 | U21: 1.6731 | V21: 3.3462 | W21: =Y21-Q21-N21 -> -46.1713 | X21: =IFERROR(W21/N21,"-") -> -0.263836 | Y21: =H21 -> 167.31
A22: modelo 16 | B22: abc | C22: a | D22: Sobrepor | E22: 601.6117482 | F22: 17 | G22: 559.4989259 | H22: 387.73 | I22: 421.12 | J22: 35088 | K22: 22/09/2021 | L22: 7 | M22: https://www.magazineluiza.com.br/cofre-yale-value-compact-ysv-200-db1/p/jdb896de6k/cj/cfdi/?&seller_id=jhowmaxmateriaisparacontrucao&utm_source=google&utm_medium=pla&utm_campaign=&partner_id=61984&gclid=Cj0KCQjwrJOMBhCZARIsAGEd4VE9kWUHWQTZ1gk3D2D67j8IWRU3bSrW8EnM4q1arTX0AwcYijyivBwaAswsEALw_wcB&gclsrc=aw.ds | N22: 421.12 | O22: 5 | P22: 0.07 | Q22: 89.1779 | R22: 46.5276 | S22: 27.1411 | T22: 3.8773 | U22: 3.8773 | V22: 7.7546 | W22: =Y22-Q22-N22 -> -122.5679 | X22: =IFERROR(W22/N22,"-") -> -0.2910521941 | Y22: =H22 -> 387.73
A23: modelo 17 | B23: abc | C23: a | D23: Sobrepor | E23: 516.8102095 | F23: 18 | G23: 480.6334949 | H23: 305.65 | I23: 368.07 | J23: 35088 | K23: 22/09/2021 | M23: https://www.magazineluiza.com.br/cofre-eletronico-yale-mini-blue/p/hdjf484h09/cj/csre/?&seller_id=jhowmaxmateriaisparacontrucao&utm_source=google&utm_medium=pla&utm_campaign=&partner_id=61984&gclid=Cj0KCQjwrJOMBhCZARIsAGEd4VEc5Qrk3po1RyEXWgFeIQiY0J5bkD0-c1XwrcLTLxDrlEdI8hUQaLcaArYwEALw_wcB&gclsrc=aw.ds | N23: 368.07 | O23: 5 | P23: 0.07 | Q23: 70.2995 | R23: 36.678 | S23: 21.3955 | T23: 3.0565 | U23: 3.0565 | V23: 6.113 | W23: =Y23-Q23-N23 -> -132.7195 | X23: =IFERROR(W23/N23,"-") -> -0.3605822262 | Y23: =H23 -> 305.65
A24: modelo 18 | B24: abc | C24: a | D24: Sobrepor | E24: 802.3368207 | F24: 19 | G24: 746.1732433 | H24: 474.77 | I24: 561.97 | J24: 29553 | K24: 29/07/2021 | L24: 2 | M24: https://www.magazineluiza.com.br/cofre-yale-value-home-ysv-250-db1/p/bg4bcakbf8/cj/cfdi/?&seller_id=jhowmaxmateriaisparacontrucao&utm_source=google&utm_medium=pla&utm_campaign=&partner_id=54222&gclid=Cj0KCQjwrJOMBhCZARIsAGEd4VGya74NJ9bC430OIMW816ReqC8lizElYIjYjI-0u93CtPCXNIqMXI4aAkBXEALw_wcB&gclsrc=aw.ds | N24: 561.97 | O24: 5 | P24: 0.07 | Q24: 109.1971 | R24: =Y24*12% -> 56.9724 | S24: 33.2339 | T24: 4.7477 | U24: 4.7477 | V24: 9.4954 | W24: =Y24-Q24-N24 -> -196.3971 | X24: =IFERROR(W24/N24,"-") -> -0.3494796875 | Y24: =H24 -> 474.77
A25: modelo 19 | B25: abc | C25: a | D25: Sobrepor | E25: 2193.054274 | F25: 20 | G25: 2039.540475 | H25: 1297.29 | I25: 1535.56 | J25: 35088 | K25: 22/09/2021 | L25: 2 | M25: https://www.magazineluiza.com.br/cofre-yale-standard-home-biometria/p/ag24d4k623/cj/cfdi/?&seller_id=jhowmaxmateriaisparacontrucao&utm_source=google&utm_medium=pla&utm_campaign=&partner_id=61984&gclid=Cj0KCQjwrJOMBhCZARIsAGEd4VGwTEMTbVopCeiDxwGPG3BIOGuUkEA83pffcjLtDOaw2oz0NjQmcDIaAg3WEALw_wcB&gclsrc=aw.ds | N25: 1535.56 | O25: 5 | P25: 0.07 | Q25: 298.3767 | R25: 155.6748 | S25: 90.8103 | T25: 12.9729 | U25: 12.9729 | V25: 25.9458 | W25: =Y25-Q25-N25 -> -536.6467 | X25: =IFERROR(W25/N25,"-") -> -0.3494794733 | Y25: =H25 -> 1297.29
A26: modelo 20 | B26: abc | C26: a | D26: Sobrepor | E26: 1014.664557 | F26: 21 | G26: 943.6380378 | H26: 792.11 | I26: 710.3 | J26: 20832 | K26: 2021-04-08 | L26: 2 | M26: https://www.magazineluiza.com.br/cofre-yale-standard-compact-ysb-200-eb1/p/cceedbjg5k/cj/cfdi/?&seller_id=jhowmaxmateriaisparacontrucao&utm_source=google&utm_medium=pla&utm_campaign=&partner_id=54222&gclid=Cj0KCQjwrJOMBhCZARIsAGEd4VHWdqZ9fzhfOP468-9gg8e_WlJheKq0jo4oEwThxSpc_N2nnUNWyFUaAmOzEALw_wcB&gclsrc=aw.ds | N26: 710.3 | O26: 6 | P26: 0.07 | Q26: 182.1853 | R26: 95.0532 | S26: 55.4477 | T26: 7.9211 | U26: 7.9211 | V26: 15.8422 | W26: =Y26-Q26-N26 -> -100.3753 | X26: =IFERROR(W26/N26,"-") -> -0.1413139519 | Y26: =H26 -> 792.11
A27: modelo 21 | B27: abc | C27: a | D27: Sobrepor | E27: 516.7870894 | F27: 22 | G27: 480.6119931 | H27: 279.9 | I27: 368.07 | J27: 35088 | K27: 22/09/2021 | M27: https://www.casasbahia.com.br/mini-cofre-eletronico-pink-yale-abertura-com-senha-rosa-55012478/p/55012478?utm_medium=Cpc&utm_source=GP_PLA&IdSku=55012478&idLojista=10037&utm_campaign=casa_smart-shopping&gclid=Cj0KCQjwrJOMBhCZARIsAGEd4VGDcbIL1Jcn_4XCZltVoaJqfN2CgkrfCXWuO1C-C6Hk7kGOfTRmOsYaAkiEEALw_wcB | N27: 368.07 | O27: 6 | P27: 0.07 | Q27: 64.377 | R27: 33.588 | S27: 19.593 | T27: 2.799 | U27: 2.799 | V27: 5.598 | W27: =Y27-Q27-N27 -> -152.547 | X27: =IFERROR(W27/N27,"-") -> -0.4144510555 | Y27: =H27 -> 279.9
A28: modelo 22 | B28: abc | C28: a | D28: Sobrepor | E28: 516.7870894 | F28: 23 | G28: 480.6119931 | H28: 305.65 | I28: 368.07 | J28: 35088 | K28: 22/09/2021 | M28: https://www.magazineluiza.com.br/cofre-eletronico-yale-mini-blue/p/hdjf484h09/cj/csre/?&seller_id=jhowmaxmateriaisparacontrucao&utm_source=google&utm_medium=pla&utm_campaign=&partner_id=61984&gclid=Cj0KCQjwrJOMBhCZARIsAGEd4VEc5Qrk3po1RyEXWgFeIQiY0J5bkD0-c1XwrcLTLxDrlEdI8hUQaLcaArYwEALw_wcB&gclsrc=aw.ds | N28: 368.07 | O28: 6 | P28: 0.07 | Q28: 70.2995 | R28: 36.678 | S28: 21.3955 | T28: 3.0565 | U28: 3.0565 | V28: 6.113 | W28: =Y28-Q28-N28 -> -132.7195 | X28: =IFERROR(W28/N28,"-") -> -0.3605822262 | Y28: =H28 -> 305.65
A29: modelo 23 | B29: abc | C29: a | D29: Embutir | E29: 882.3323124 | F29: 24 | G29: 820.5690506 | H29: 657.4 | I29: 701.91 | J29: - | K29: - | L29: 2 | M29: https://www.magazineluiza.com.br/olho-magico-digital-yale-auto-imaging-jy7043-com-campainha/p/ge6a026h3d/ci/omdi/?&seller_id=jhowmaxmateriaisparacontrucao&utm_source=google&utm_medium=pla&utm_campaign=&partner_id=54222&gclid=Cj0KCQjwrJOMBhCZARIsAGEd4VF3f2lPyc-DtQViBPOJ7onwjdqGmbdGWlAUmaduH4qlvxElgYidwZMaAlWFEALw_wcB&gclsrc=aw.ds | N29: 701.91 | O29: 6 | P29: 0.1 | Q29: 151.202 | R29: 78.888 | S29: 46.018 | T29: 6.574 | U29: 6.574 | V29: 13.148 | W29: =Y29-Q29-N29 -> -195.712 | X29: =IFERROR(W29/N29,"-") -> -0.2788277699 | Y29: =H29 -> 657.4
A30: modelo 24 | B30: abc | C30: a | D30: Embutir | E30: 3568.244344 | F30: 25 | G30: 3318.46724 | H30: 2.435,44 | I30: 2780.718915 | J30: - | K30: - | L30: - | M30: https://www.shoptime.com.br/produto/2655354141?epar=bp_pl_ou_go_b2wads&opn=GOOGLEXML&WT.srch=1&aid=6148e3b43dd7d300164946e0&sid=29894630000139&pid=2655354141&chave=vnzpla_6148e3b43dd7d300164946e0_29894630000139_2655354141&gclid=Cj0KCQjwrJOMBhCZARIsAGEd4VGoegLuuP_xFj8OPzyyAORrKCklpYxoHl0WN27POlWTQ4ywtEHS7RcaAlplEALw_wcB | N30: 2780.718915 | O30: 7 | P30: 0.1 | Q30: 560.1512 | R30: 292.2528 | S30: 170.4808 | T30: 24.3544 | U30: 24.3544 | V30: 48.7088 | W30: =Y30-Q30-N30 -> -905.4301147 | X30: =IFERROR(W30/N30,"-") -> -0.3256100823 | Y30: 2435.44
N31: Total | O31: 7 | Q31: =SUM(N7:N30) -> 26892.02091
